Cogmind - Beta 14 @@@ ROGUE MODE // 2024.08.13 @ 15:14:58 Player: Sgt. SmokeWeed Result: Self-destructed Performance ------------- Evolutions (0) 0 Regions Visited (4) 800 Robots Destroyed (21) 105 Value Destroyed (516) 516 Prototype IDs (23) 460 Alien Tech Used (0) 0 Bonus (345) 345 TOTAL SCORE: 2226 Bonus ------- Follower Combat Kills 60 Aligned with FarCom 300 Friendly Fire -15 Cogmind --------- Core Integrity 138/250 Matter 253/300 Energy 100/100 System Corruption 12% Temperature Cool (0) Movement Treading (145) Location -9/Mines Parts ------- > --- POWER (1) -------- (None) > --- PROPULSION (2) --- Advanced Treads > --- UTILITY (2) ------ (None) > --- WEAPON (2) ------- Longsword +1 > --- INVENTORY (5) ---- Ion Engine Light Treads Particle Gun Field Laser Peak State ------------ > --- POWER ------------ Light Angular Momentum Engine > --- PROPULSION ------- Light Treads Advanced Treads > --- UTILITY ---------- Improved Heat Sink Improved Heat Sink > --- WEAPON ----------- Longsword +1 > --- INVENTORY -------- Ion Engine Light Treads Particle Gun Field Laser [Rating: 23] Favorites ----------- Power Ion Engine Engine Ion Engine Propulsion Light Treads Treads Light Treads Utility Improved Heat Sink Device Improved Heat Sink Weapon Particle Gun Energy Gun Particle Gun Ballistic Gun Assault Rifle Launcher Grenade Launcher Slashing Weapon Longsword +1 Build | -11 -10 -10 -10 -9 ------- Run | Yrd Mat Min Exi Min Slots Evolved . | . . . . . Power . | . . . . . Propulsion . | . . . . . Utility . | . . . . . Weapon . | . . . . . Parts Attached 14 | 5 4 4 1 . Power 2 | 1 . 1 . . Engine 2 | 1 . 1 . . Core . | . . . . . Reactor . | . . . . . Propulsion 4 | 2 1 1 . . Treads 4 | 2 1 1 . . Leg . | . . . . . Wheel . | . . . . . Hover . | . . . . . Flight . | . . . . . Utility 2 | . 1 1 . . Device 2 | . 1 1 . . Storage . | . . . . . Processor . | . . . . . Hackware . | . . . . . Protection . | . . . . . Artifact . | . . . . . Weapon 6 | 2 2 1 1 . Energy Gun 3 | 1 1 1 . . Energy Cannon . | . . . . . Ballistic Gun 1 | 1 . . . . Ballistic Cannon . | . . . . . Launcher 1 | . 1 . . . Special Weapon . | . . . . . Impact Weapon . | . . . . . Slashing Weapon 1 | . . . 1 . Piercing Weapon . | . . . . . Special Melee Weapon . | . . . . . Unidentified Prototypes . | . . . . . Corrupted Parts 2 | . 2 . . . System Corruption 11 | . 11 . . . Parts Lost 3 | . . 1 . 2 Power 1 | . . . . 1 Propulsion 1 | . . . . 1 Utility . | . . . . . Weapon 1 | . . 1 . . Highest Loss Streak 2 | . . 1 . 2 To Critical Strikes . | . . . . . Average Slot Usage (%) 75 | . 79 78 67 57 Engine 14 | . 14 14 14 14 Treads 28 | . 28 28 28 28 Device 13 | . 8 16 17 . Energy Gun 11 | . 14 16 . . Launcher 6 | . 13 2 . . Slashing Weapon 1 | . . . 6 14 Peak Build Rating 23 | 5 9 20 23 17 Average Rating 10 | 3 7 10 16 16 On Entrance 10 | . 5 9 20 17 Naked Turns . | . . . . . Heaviest Build 17 | 9 12 17 14 12 Greatest Support 42 | 40 40 42 42 42 Greatest Overweight (x) . | . . . . . Average Overweight (x) . | . . . . . Largest Inventory Capacity 5 | 5 5 5 5 5 Average Capacity 5 | 5 5 5 5 5 Most Carried 4 | . 1 2 4 4 Average Carried 1 | . . . 3 4 Final Capacity 5 | 5 5 5 5 5 Final Carried 4 | . . 2 4 4 Class Distribution -------------------- 100% | Mutant Dominant Class ---------------- Mutant | -10/Materials Mutant | -10/Mines Mutant | -10/Exiles Mutant | -9/Mines Resources | -11 -10 -10 -10 -9 ----------- Run | Yrd Mat Min Exi Min Matter Collected 532 | 116 152 264 . . Remotely . | . . . . . Salvage Created 500 | . 413 87 . . Parts 39 | . 36 3 . . Haulers Intercepted 2 | . 2 . . . Recyclers Shooed 2 | . 2 . . . Parts Field Recycled . | . . . . . Retrieved Matter . | . . . . . Parts Self-Destructed . | . . . . . Prevented . | . . . . . Kills | -11 -10 -10 -10 -9 ------- Run | Yrd Mat Min Exi Min Combat Hostiles Destroyed 13 | . 9 4 . . Guns 4 | . 1 3 . . AOE 9 | . 8 1 . . Classes Destroyed 8 | . 8 . . . Worker 1 | . 1 . . . Builder 1 | . 1 . . . Tunneler 1 | . 1 . . . Hauler 2 | . 2 . . . Recycler 1 | . 1 . . . Watcher 2 | . 2 . . . Swarmer 5 | . 3 2 . . Grunt 8 | . 6 2 . . Best Kill Streak 5 | . 5 2 . . Combat Bots Only 3 | . 3 2 . . Max Kills in Single Turn 2 | . 2 1 . . Gunslinging . | . . . . . Exploded 2 | . 2 1 . . Melee . | . . . . . Uniques/NPCs Destroyed . | . . . . . Combat | -11 -10 -10 -10 -9 -------- Run | Yrd Mat Min Exi Min Hostile Shots Fired 40 | . 16 19 . 5 Missed 9 | . 3 5 . 1 Damage Taken 621 | . 200 164 . 257 Core 112 | . 33 41 . 38 Absorbed by Shields . | . . . . . Core Remaining (%) 100 | 100 . . . . Volleys Fired 42 | . 27 15 . . Largest 2 | . 2 2 . . Hottest 95 | . 95 95 . . Shots Fired 58 | . 40 18 . . Gun 41 | . 26 15 . . Cannon . | . . . . . Launcher 17 | . 14 3 . . Special . | . . . . . Kinetic . | . . . . . Thermal 41 | . 26 15 . . Explosive 17 | . 14 3 . . Electromagnetic . | . . . . . Robot Hit Streak 5 | . 4 5 . . Robot Miss Streak 5 | . 5 2 . . Penetration Max . | . . . . . Secondary Targets . | . . . . . Shots Hit Robots 23 | . 11 12 . . Core Hits 36 | . 27 9 . . Critical Kills . | . . . . . Critical Parts Destroyed . | . . . . . Critical Strikes 1 | . 1 . . . Burn 1 | . 1 . . . Melee Attacks . | . . . . . Impact . | . . . . . Slashing . | . . . . . Piercing . | . . . . . Sneak Attacks . | . . . . . Combat Hostiles . | . . . . . Follow-up Attacks . | . . . . . Damage Inflicted 1329 | . 1058 271 . . Guns 350 | . 180 170 . . Cannons . | . . . . . Explosions 975 | . 878 97 . . Melee . | . . . . . Ramming 4 | . . 4 . . Kinetic . | . . . . . Thermal 350 | . 180 170 . . Explosive 823 | . 726 97 . . Electromagnetic 152 | . 152 . . . Impact . | . . . . . Slashing . | . . . . . Piercing . | . . . . . Highest Corruption 12 | . 12 12 12 12 Average Corruption 10 | . 7 12 12 12 Corruption Purged . | . . . . . Corruption Blocked . | . . . . . Effects 41 | . 7 20 12 2 Message Errors 8 | . 1 4 3 . Matter Fused 13 | . 1 7 4 1 Heat Flow Errors 4 | . 1 1 1 1 Energy Discharges 4 | . 1 2 1 . Data Loss (minor) 7 | . 2 4 1 . Alerts 2 | . . . 2 . Misdirections 1 | . . 1 . . Weapon Failures 2 | . 1 1 . . Overload Shots . | . . . . . Overflow Damage 21 | . 21 . . . Projectiles . | . . . . . Explosions 21 | . 21 . . . Melee . | . . . . . Knockbacks . | . . . . . Impact . | . . . . . Kinetic . | . . . . . Secondary . | . . . . . Self-Inflicted Damage 57 | . 57 . . . Shots 2 | . 2 . . . Rammed 2 | . . 2 . . Targets Rammed 2 | . . 2 . . Kicked . | . . . . . Crushed . | . . . . . Highest Temperature 161 | . 84 126 92 161 Average Temperature 33 | . 24 21 50 86 Received Heat Transfer 141 | . 60 81 . . Siege Activations . | . . . . . Robots Corrupted . | . . . . . Combat Hostiles . | . . . . . Parts Fried . | . . . . . Impact Corruptions . | . . . . . Robots Melted . | . . . . . Combat Hostiles . | . . . . . Parts Melted 2 | . 1 1 . . Heat Transferred 999 | . 592 407 . . Parts Sabotaged . | . . . . . Parts Stolen . | . . . . . Parts Stripped . | . . . . . Power Chain Reactions . | . . . . . Alert | -11 -10 -10 -10 -9 ------- Run | Yrd Mat Min Exi Min Peak Influence 361 | . 295 361 . . Initial 114 | . . 114 . . Average 179 | . 183 215 . . Maximum Alert Level 1 | . 1 1 . . Low Security (%) 53 | 100 50 46 . 100 Level 1 46 | . 49 53 . . Level 2 . | . . . . . Level 3 . | . . . . . Level 4 . | . . . . . Level 5 . | . . . . . High Security . | . . . . . Max Security . | . . . . . Squads Dispatched 1 | . 1 . . . Investigation . | . . . . . Extermination . | . . . . . Reinforcement 1 | . 1 . . . Assault . | . . . . . Garrison . | . . . . . Intercept . | . . . . . Searches Triggered . | . . . . . Construction Impeded . | . . . . . Haulers Reinforced . | . . . . . Active Scanning Responses . | . . . . . Cargo Convoy Interrupts . | . . . . . Stealth | -11 -10 -10 -10 -9 --------- Run | Yrd Mat Min Exi Min Distress Signals . | . . . . . Communications Jammed . | . . . . . Distress Signals . | . . . . . Times Spotted 25 | . 16 7 . 2 Peak Tracking Total 4 | . 4 3 . 2 Tactical Retreats 2 | . . 2 . . Traps | -11 -10 -10 -10 -9 ------- Run | Yrd Mat Min Exi Min Traps Triggered 1 | . 1 . . . Indirectly . | . . . . . Trap Hack Attempts . | . . . . . Triggered . | . . . . . Disarmed . | . . . . . Reprogrammed . | . . . . . Reused . | . . . . . Traps Extracted . | . . . . . Installed . | . . . . . Triggered . | . . . . . Machines | -11 -10 -10 -10 -9 ---------- Run | Yrd Mat Min Exi Min Machines Disabled 10 | . 6 4 . . Max in Single Turn 3 | . 3 2 . . Machines Repaired . | . . . . . Machines Dismantled . | . . . . . Machines Sabotaged . | . . . . . Overloaded Fab Kills . | . . . . . Hacking | -11 -10 -10 -10 -9 --------- Run | Yrd Mat Min Exi Min Machines Accessed 4 | . 2 1 1 . Terminals 2 | . 2 . . . Fabricators . | . . . . . Repair Stations . | . . . . . Recycling Units . | . . . . . Scanalyzers . | . . . . . Garrison Access . | . . . . . Total Hacks 4 | . 2 1 1 . Successful 3 | . 1 1 1 . Failed 1 | . 1 . . . Catastrophic 1 | . 1 . . . Database Lockouts . | . . . . . Manual 3 | . 2 . 1 . Terminals 2 | . 2 . . . Fabricators . | . . . . . Repair Stations . | . . . . . Recycling Units . | . . . . . Scanalyzers . | . . . . . Garrison Access . | . . . . . Terminal Hacks 3 | . 1 1 1 . Open Door 1 | . . 1 . . Branch Access Points 1 | . 1 . . . Derelict Proto ID Bank 1 | . . . 1 . Fabricator Hacks . | . . . . . Repair Station Hacks . | . . . . . Recycling Unit Hacks . | . . . . . Scanalyzer . | . . . . . Garrison Access Hacks . | . . . . . Unauthorized Hacks . | . . . . . Terminals . | . . . . . Fabricators . | . . . . . Repair Stations . | . . . . . Recycling Units . | . . . . . Scanalyzers . | . . . . . Garrison Access . | . . . . . Data Cores Recovered . | . . . . . Used . | . . . . . Hacking Detections 1 | . 1 . . . Full Trace Events . | . . . . . Feedback Events . | . . . . . Feedback Blocked . | . . . . . Robot Schematics Acquired . | . . . . . Robots Built . | . . . . . Authchips . | . . . . . Time . | . . . . . Total Robot Build Rating . | . . . . . Part Schematics Acquired . | . . . . . Parts Built . | . . . . . Authchips . | . . . . . Time . | . . . . . Total Part Build Rating . | . . . . . Parts Repaired . | . . . . . Time . | . . . . . Parts Recycled . | . . . . . Recycled Matter . | . . . . . Retrieved Matter . | . . . . . Retrieved Components . | . . . . . Parts Scanalyzed . | . . . . . Part Schematics Acquired . | . . . . . Parts Damaged . | . . . . . Bothacking | -11 -10 -10 -10 -9 ------------ Run | Yrd Mat Min Exi Min Used RIF Installer . | . . . . . Robots Hacked . | . . . . . Non-combat . | . . . . . Combat . | . . . . . Robot Hacks Applied . | . . . . . Relay Couplers Released . | . . . . . Fabnet Peak Effective % . | . . . . . Robots Rewired . | . . . . . Allies Hacked . | . . . . . Hacks Repelled . | . . . . . Allies | -11 -10 -10 -10 -9 -------- Run | Yrd Mat Min Exi Min Total Allies 4 | . . 1 . 3 Largest Group 3 | . . 1 1 3 Highest-Rated Group 40 | . . 31 31 40 Highest-Rated Ally 31 | . . 31 31 16 Total Orders . | . . . . . Ally Attacks 10 | . . 8 . 2 Total Damage 139 | . . 124 . 15 Kills 2 | . . 2 . . Allies Corrupted . | . . . . . Allies Melted . | . . . . . Intel | -11 -10 -10 -10 -9 ------- Run | Yrd Mat Min Exi Min Robot Analysis Total . | . . . . . Derelict Logs Recovered 1 | . . 1 . . Drone Launches . | . . . . . Drone Recoveries . | . . . . . Exploration | -11 -10 -10 -10 -9 ------------- Run | Yrd Mat Min Exi Min Turns Passed 1647 | 57 642 552 329 67 Spaces Moved 963 | 35 353 316 215 44 Core 5 | 5 . . . . Treads 958 | 30 353 316 215 44 Legs . | . . . . . Wheels . | . . . . . Hover . | . . . . . Flight . | . . . . . Fastest Speed 50 | 50 160 152 152 145 Average Speed 156 | 144 160 158 152 151 Slowest Speed 160 | 160 160 160 152 152 Overloaded Moves . | . . . . . Propulsion Burnouts . | . . . . . Robots Hopped . | . . . . . Cave-ins Triggered . | . . . . . Exploration Rate (%) 46 | 3 73 76 61 18 Regions Visited 4 Branch Regions 3 Pre-discovered Areas 1 | . . 1 . . Known Exits Taken 1 | . 1 . . . Unknown Exits Taken 3 | 1 . 1 1 . Scrap Searched 1 | . . 1 . . Spaces Dug . | . . . . . Terrain Destroyed 64 | . 54 10 . . Melee . | . . . . . Projectile . | . . . . . AOE 64 | . 54 10 . . Terrain Rammed . | . . . . . Walls Destroyed . | . . . . . Machines Disabled . | . . . . . Actions | -11 -10 -10 -10 -9 --------- Run | Yrd Mat Min Exi Min Total 1035 | 39 388 345 219 44 Wait 12 | . 3 9 . . Move 959 | 34 352 315 214 44 Hop . | . . . . . Pick Up . | . . . . . Fast Attach 10 | 5 2 2 1 . Attach . | . . . . . Detach 2 | . . . 2 . Swap 4 | . 2 2 . . Drop 4 | . 2 . 2 . Fire 42 | . 27 15 . . Melee . | . . . . . Ram . | . . . . . Kick . | . . . . . Crush 2 | . . 2 . . Escape Stasis . | . . . . . Rewire . | . . . . . Trap . | . . . . . Miscellaneous . | . . . . . Route ------- -11/Scrapyard -10/Materials (discovered 5 exits: [*Mat x3] / *Min x2) -10/Mines (discovered 2 exits: [*Mat] / *Exi) -10/Exiles -9/Mines History --------- Turn | Location | Event 3 | -11/Scrapyard | Discovered new exit (range 15) 58 | -11/Scrapyard | Entered Materials 226 | -10/Materials | Discovered new exit (range 16) 318 | -10/Materials | Build established: Mutant 360 | -10/Materials | Discovered new exit (range 13) 540 | -10/Materials | System corruption reached 10% 596 | -10/Materials | Discovered new exit (range 16) 621 | -10/Materials | Identified exit to Mines 700 | -10/Materials | Entered Mines 962 | -10/Mines | Learned location of Zion (-7) 998 | -10/Mines | Discovered new exit (range 4) 1021 | -10/Mines | Received a Mining Laser from a helpful Derelict 1132 | -10/Mines | Met a Derelict who couldn't figure out how to use a Trap Extractor 1246 | -10/Mines | Deemed a non-threat by the Exiles lab entrance 1246 | -10/Mines | Discovered new exit (range 5) 1252 | -10/Mines | Entered Exiles 1252 | -10/Exiles | Accompanied by 1 ally 1291 | -10/Exiles | Met 8R-AWN 1316 | -10/Exiles | Met EX-HEX 1360 | -10/Exiles | Met EX-BIN 1381 | -10/Exiles | Aligned with FarCom system 1383 | -10/Exiles | Given EX-Vault access code 1421 | -10/Exiles | Opened EX-Vault 1430 | -10/Exiles | Found Longsword +1 1463 | -10/Exiles | Warned to stay clear of 0b10 Research branches 1511 | -10/Exiles | Met EX-DEC 1566 | -10/Exiles | Discovered new exit (range 10) 1581 | -10/Exiles | Left Exiles lab with Longsword +1 1581 | -10/Exiles | Entered Mines 1625 | -9/Mines | Assembled infested the area 1638 | -9/Mines | Assisted by bots powering up and referring to "LRC-V3" 1648 | -9/Mines | Self-destructed Last Messages --------------- LOCATION=UNKNOWN GOAL=ESCAPE Receiving FarCom transmissions... K-01 Serf collects debris. System corrupted: Heat flow error (+177). K-01 Serf collects debris. ALERT: Infestation in the mines, dispatching Demolisher response squad. System corrupted: Matter fused (-7). K-01 Serf collects debris. Trooper 2a: "Hello LRC-V3. What is your command?" Mercenary 2a: "Hello LRC-V3. What is your command?" Trooper 2b: "Hello LRC-V3. What is your command?" C-30 ARC bursts open, deploying its payload. D-53 Grenadier unfolds itself. Trooper 2b destroyed. Mercenary 2a destroyed. K-01 Serf collects debris. Trooper 2a destroyed. Lgt. Treads destroyed. Lgt. Angular Momentum Engine destroyed. Map ----- +----------------------------------------------------+ | ?????????????????????????????????????????? | | ?????????????????????????????????????????? | | ?????????????????????????????????????????? | | ?????????????????????????????????????????? | | ?????????????????????????????????????????? | | ?????????????????????????????????????????? | | ?????????????????????????????????????????? | | ?????????????????????????????????????????? | | ?????????????????????????????????????????? | | ?????????????????????????????????????????? | | ?????????????????????????????????????????? | | ?????????????????????????????????????????? | | ?????????????????????????????????????????? | | ?????????????????????????????????????????? | | ?????????????????????????????????????????? | | ?????????????????????????????????????????? | | ?????????????????????#???????????????????? | | ????????????????????a#???????????????????? | | ???????????????????? #???????????????????? | | ???????????????????# ##??????????????????? | | ??????????????##### #??????????????????? | | ????????????### #??????????????????? | | ???????????## #??????????????????? | | ?????????### !#??????????????????? | | ?????????# #??????????????????? | | ??????#### % @ #??????????????????? | | ????### ##??????????????????? | | ???## =% #???????????????????? | | ???# k = #???????????????????? | | ???# k ##???????????????????? | | ???# #???????????????????? | | ???# #?????????? ????????? | | ??# ### ##??????? #???????? | | ??# ##?##u d ###### #??????? | | ??## ##????# d %" #??????? | | ???## #??????# #??????? | | ????## #??????## #???????? | | ?????########??# #????????? | | ??????# #??# ## # #????????? | | ??????# #??## #?# #???????????? | | ??????# #???## #?? ##???????????? | | ??????# ###### #??? ###????????????? | | ??????# #????##??????????????? | | ??????# ##### ###????????????????????? | | ??????# #???# #??????????????????????? | | ??????#######???# #??????????????????????? | | ????????????????# #??????????????????????? | | ????????????????# #??????????????????????? | | ????????????????# #??????????????????????? | | ????????????????# #??????????????????????? | +----------------------------------------------------+ Best States ------------- Heat Dissipation 53 Energy Generation 18 Energy Capacity 250 Matter Stores 300 Matter Capacity 300 Sight Range 16 Terrain Scan Density 10 Evasion (%) 40 Recoil Reduction 2 Item Schematics ----------------- None Robot Schematics ------------------ None Fabricated ------------ Nothing Alien Tech Used ----------------- None Achievements -------------- None Challenges ------------ None Game ------ Seed AdvancedDispersionKatana Manual? 0 Play Time 00:07:17 Cumulative 73.6 hours Start 2024.08.12 @ 17:33:31 End 2024.08.13 @ 15:14:58 Sessions 3 Manual Loads 0 Difficulty Rogue Special Mode None Game No. 182 Rogue 107 Adventurer 75 Explorer 0 Win Type - Total 0 Types 0/0/0/0/0/0/0/0/0 Lore% 40 Gallery% 43 Achievement% 35 Wizard Run 0 Options --------- Layout 0 ASCII 0 Keyboard 0 Movement Mouse Keybinds 0 Fullscreen 1 Font 24/Smallcaps Map View 76x50 Zoom Use 0% Tactical HUD 0 Map Filters NONE Filters NONE Steam 1 RUN: ba219667-545f-4d75-af2a-90a5ab6ac740